fUSD/lending_fUSD_20240520
["ID","MTS","AMOUNT","RATE_DAILY","PERIOD"]
[327529271,1716168650566,-153.26342623,0.00023536,2]
[327529272,1716168650577,-150.0,0.0002355,2]
[327529273,1716168650586,-112848.0,0.00023589,2]
[327529274,1716168650595,-3034559.2305424,0.00023599,9]
[327529275,1716168650604,-335304.0,0.000236,2]
[327529276,1716168650614,-183.27340083,0.00023648,2]
[327529277,1716168650623,-157.337419,0.00023677,2]
[327529278,1716168650633,-150.0,0.00023725,2]
[327529279,1716168650642,-150.0,0.00023727,2]
[327529280,1716168650651,-166.66666666,0.00023754,2]
[327529281,1716168650661,-166.83499667,0.00023769,2]
[327529282,1716168650670,-300.12357253,0.00023778,2]
[327529283,1716168650679,-150.0,0.00023785,3]
[327529284,1716168650688,-178.58367512,0.00023791,2]
[327529285,1716168650697,-154.51679898,0.000238,2]
[327529286,1716168650707,-159.99363732,0.00023837,2]
[327529287,1716168650716,-1109.13688914,0.00023842,2]
[327529288,1716168650726,-2604.3520118,0.00023842,2]
[327529289,1716168650735,-434.56969276,0.00023855,2]
[327529290,1716168650744,-299.93872796,0.00023856,2]
[327529291,1716168650753,-154.51679898,0.00023887,2]
[327529292,1716168650762,-84949.44804364,0.000239,2]
[327529293,1716168650771,-434.56969276,0.00023923,2]
[327529294,1716168650782,-157.66903106,0.00023927,2]
[327529295,1716168650791,-178.58367512,0.00023934,2]
[327529296,1716168650802,-51870.97196455,0.00023955,2]
[327529297,1716168650811,-153.90576893,0.00023984,2]
[327529298,1716168650820,-300.12357253,0.00023986,2]
[327529299,1716168650829,-150.0,0.00023998,2]
[327529300,1716168650839,-152.0,0.00024,3]
[327529301,1716168650848,-237.13966848,0.00024,5]
[327529302,1716168650858,-1000.0,0.00024,4]
[327529303,1716168650867,-49751.23140684,0.00024,3]
[327529304,1716168650876,-518.0672477,0.00024,2]
[327529305,1716168650885,-173.70032601,0.00024,2]
[327529306,1716168650894,-209.10390979,0.00024,2]
[327529307,1716168650904,-1890.27919215,0.00024,2]
[327529308,1716168650913,-4135.89,0.00024,2]
[327529309,1716168650922,-8422.50320969,0.00024,2]
[327529310,1716168650931,-500.0,0.00024,2]
[327529311,1716168650941,-500.0,0.00024,2]
[327529312,1716168650950,-500.0,0.00024,2]
[327529313,1716168650960,-500.0,0.00024,2]
[327529314,1716168650969,-500.0,0.00024,2]
[327529315,1716168650978,-500.0,0.00024,2]
[327529316,1716168650987,-500.0,0.00024,2]
[327529317,1716168650997,-500.0,0.00024,2]
[327529318,1716168651006,-500.0,0.00024,2]
[327529319,1716168651015,-500.0,0.00024,2]
[327529320,1716168651025,-500.0,0.00024,2]
[327529321,1716168651034,-500.0,0.00024,2]
[327529322,1716168651044,-500.0,0.00024,2]
[327529323,1716168651053,-500.0,0.00024,2]
[327529324,1716168651062,-500.0,0.00024,2]
[327529325,1716168651071,-500.0,0.00024,2]
[327529326,1716168651081,-500.0,0.00024,2]
[327529327,1716168651091,-500.0,0.00024,2]
[327529328,1716168651100,-500.0,0.00024,2]
[327529329,1716168651110,-500.0,0.00024,2]
[327529330,1716168651119,-500.0,0.00024,2]
[327529331,1716168651128,-500.0,0.00024,2]
[327529332,1716168651138,-500.0,0.00024,2]
[327529333,1716168651148,-500.0,0.00024,2]
[327529334,1716168651157,-500.0,0.00024,2]
[327529335,1716168651166,-500.0,0.00024,2]
[327529336,1716168651176,-500.0,0.00024,2]
[327529337,1716168651185,-500.0,0.00024,2]
[327529338,1716168651194,-500.0,0.00024,2]
[327529339,1716168651203,-500.0,0.00024,2]
[327529340,1716168651212,-500.0,0.00024,2]
[327529341,1716168651222,-500.0,0.00024,2]
[327529342,1716168651231,-500.0,0.00024,2]
[327529343,1716168651241,-500.0,0.00024,2]
[327529344,1716168651251,-500.0,0.00024,2]
[327529345,1716168651260,-500.0,0.00024,2]
[327529346,1716168651270,-500.0,0.00024,2]
[327529347,1716168651280,-500.0,0.00024,2]
[327529348,1716168651289,-1500.0,0.00024,2]
[327529349,1716168651298,-1012.011905,0.00024,2]
[327529350,1716168651308,-500.0,0.00024,2]
[327529351,1716168651318,-500.0,0.00024,2]
[327529352,1716168651327,-500.0,0.00024,2]
[327529353,1716168651337,-500.0,0.00024,2]
[327529354,1716168651346,-500.0,0.00024,2]
[327529355,1716168651356,-500.0,0.00024,2]
[327529356,1716168651365,-500.0,0.00024,2]
[327529357,1716168651374,-500.0,0.00024,2]
[327529358,1716168651383,-500.0,0.00024,2]
[327529359,1716168651392,-519.52,0.00024,2]
[327529360,1716168651402,-500.0,0.00024,2]
[327529361,1716168651412,-500.0,0.00024,2]
[327529362,1716168651422,-500.0,0.00024,2]
[327529363,1716168651431,-500.0,0.00024,2]
[327529364,1716168651440,-500.0,0.00024,2]
[327529365,1716168651450,-500.0,0.00024,2]
[327529366,1716168651460,-500.0,0.00024,2]
[327529367,1716168651469,-528.9,0.00024,2]
[327529368,1716168651478,-150.0,0.00024,4]
[327529369,1716168651488,-500.0,0.00024,2]
[327529370,1716168651498,-500.0,0.00024,2]
[327529371,1716168651508,-507.29,0.00024,2]
[327529372,1716168651518,-500.0,0.00024,2]
[327529373,1716168651528,-500.0,0.00024,2]
[327529374,1716168651537,-500.0,0.00024,2]
[327529375,1716168651549,-506.66,0.00024,2]
[327529376,1716168651560,-150.0,0.00024021,2]
[327529377,1716168651570,-155.0,0.00024086,2]
[327529378,1716168651579,-150.0,0.00024089,10]
[327529379,1716168651589,-150.0,0.00024089,10]
[327529380,1716168651598,-150.0,0.00024089,10]
[327529381,1716168651607,-150.0,0.00024089,10]
[327529382,1716168651617,-150.0,0.00024089,10]
[327529383,1716168651626,-150.0,0.00024089,10]
[327529384,1716168651636,-150.0,0.00024089,10]
[327529385,1716168651646,-150.0,0.00024089,10]
[327529386,1716168651656,-150.0,0.00024089,10]
[327529387,1716168651665,-58266.82281437,0.0002409,2]
[327529388,1716168651675,-644.38845804,0.0002409,2]
[327529389,1716168651684,-1035.31804652,0.000241,2]
[327529390,1716168651693,-3000.0,0.000241,2]
[327529391,1716168651703,-150.0,0.00024102,2]
[327529392,1716168651712,-166.66666666,0.00024107,2]
[327529393,1716168651722,-299.93872796,0.0002416,2]
[327529394,1716168651731,-150.0,0.00024162,2]
[327529395,1716168651740,-1737.81,0.00024173,2]
[327529396,1716168651749,-331.85,0.00024173,2]
[327529397,1716168651759,-869.42,0.00024173,2]
[327529398,1716168651769,-415.41,0.00024173,2]
[327529399,1716168651779,-415.41,0.00024173,2]
[327529400,1716168651788,-869.42,0.00024173,2]
[327529401,1716168651797,-845.51,0.00024173,2]
[327529402,1716168651807,-413.13,0.00024173,2]
[327529403,1716168651816,-299.93872796,0.0002418,2]
[327529404,1716168651826,-150.0,0.00024207,2]
[327529405,1716168651835,-394.49264864,0.0002421,2]
[327529406,1716168651845,-150.0,0.00024218,2]
[327529407,1716168651854,-991.0777058,0.0002425,2]
[327529408,1716168651863,-205.48851354,0.00024254,2]
[327529409,1716168651872,-205.48851354,0.00024257,2]
[327529410,1716168651882,-150.0,0.0002426,2]
[327529411,1716168651893,-150.0,0.00024263,2]
[327529412,1716168651903,-157.337419,0.00024268,2]
[327529413,1716168651914,-1000.0,0.0002427,2]
[327529414,1716168651924,-1650.99127395,0.0002427,2]
[327529415,1716168651934,-1000.0,0.0002427,2]
[327529416,1716168651945,-1000.0,0.0002427,2]
[327529417,1716168651954,-1000.0,0.0002427,2]
[327529418,1716168651964,-500.0,0.0002427,2]
[327529419,1716168651973,-1000.0,0.0002427,2]
[327529420,1716168651982,-500.0,0.0002427,2]
[327529421,1716168651991,-300.0,0.0002428,2]
[327529422,1716168652000,-150.0,0.00024299,10]
[327529423,1716168652009,-150.0,0.00024299,10]
[327529424,1716168652019,-150.0,0.00024299,10]
[327529425,1716168652028,-150.0,0.00024299,10]
[327529426,1716168652038,-150.0,0.00024299,10]
[327529427,1716168652047,-150.0,0.00024299,10]
[327529428,1716168652056,-150.0,0.00024299,10]
[327529429,1716168652065,-150.0,0.00024299,10]
[327529430,1716168652074,-150.0,0.00024299,10]
[327529431,1716168652084,-150.0,0.00024299,10]
[327529432,1716168652093,-150.0,0.00024299,10]
[327529433,1716168652102,-150.0,0.00024299,10]
[327529434,1716168652112,-150.0,0.00024299,10]
[327529435,1716168652124,-150.0,0.00024299,10]
[327529436,1716168652135,-10000.0,0.000243,2]
[327529437,1716168652145,-2000.0,0.000243,2]
[327529438,1716168652155,-2000.0,0.000243,2]
[327529439,1716168652164,-2000.0,0.000243,2]
[327529440,1716168652173,-1326.60489925,0.00024303,2]
[327529441,1716168652182,-2000.0,0.0002431,2]
[327529442,1716168652191,-2000.0,0.0002431,2]
[327529443,1716168652200,-2000.0,0.0002431,2]
[327529444,1716168652210,-150.0,0.00024319,2]
[327529445,1716168652220,-2000.0,0.0002432,2]
[327529446,1716168652229,-2000.0,0.0002432,2]
[327529447,1716168652238,-2000.0,0.0002432,2]
[327529448,1716168652248,-6255.11796221,0.00024328,2]
[327529449,1716168652258,-150.0,0.00024328,10]
[327529450,1716168652267,-150.0,0.00024328,10]
[327529451,1716168652277,-150.0,0.00024328,10]
[327529452,1716168652287,-150.0,0.00024328,10]
[327529453,1716168652296,-150.0,0.00024328,10]
[327529454,1716168652305,-150.0,0.00024328,10]
[327529455,1716168652315,-150.0,0.00024328,10]
[327529456,1716168652326,-150.0,0.00024328,10]
[327529457,1716168652335,-150.0,0.00024328,10]
[327529458,1716168652344,-150.0,0.00024328,10]
[327529459,1716168652466,-150.0,0.00024328,10]
[327529460,1716168652477,-150.0,0.00024328,10]
[327529461,1716168652486,-150.0,0.00024328,10]
[327529462,1716168652496,-150.0,0.00024328,10]
[327529463,1716168652505,-150.0,0.00024328,10]
[327529464,1716168652515,-150.0,0.00024328,10]
[327529465,1716168652524,-150.0,0.00024328,10]
[327529466,1716168652535,-150.0,0.00024328,10]
[327529467,1716168652546,-322.50525056,0.00024329,2]
[327529468,1716168652560,-164.61139025,0.00024329,2]
[327529469,1716168652569,-7498.87945597,0.00024329,2]
[327529470,1716168652579,-2000.0,0.00024329,2]
[327529471,1716168652588,-200.0,0.00024329,2]
[327529472,1716168652597,-2000.0,0.00024329,2]
[327529473,1716168652606,-37463.67239129,0.00024329,2]
[327529474,1716168652615,-500.0,0.00024329,2]
[327529475,1716168652625,-200.0,0.00024329,2]
[327529476,1716168652634,-1043.27501718,0.00024329,2]
[327529477,1716168652644,-155.0,0.00024329,2]
[327529478,1716168652653,-445.14108922,0.00024329,2]
[327529479,1716168652662,-1038.83344073,0.00024329,2]
[327529480,1716168652671,-106012.86677254,0.00024329,2]
[327529481,1716168652680,-2000.0,0.0002433,2]
[327529482,1716168652689,-2000.0,0.0002433,2]
[327529483,1716168652699,-2000.0,0.0002433,2]
[327529484,1716168652708,-2000.0,0.0002434,2]
[327529485,1716168652717,-2000.0,0.0002434,2]
[327529486,1716168652728,-2000.0,0.0002434,2]
[327529487,1716168652740,-2000.0,0.0002435,2]
[327529488,1716168652750,-2000.0,0.0002435,2]
[327529489,1716168652760,-2000.0,0.0002435,2]
[327529490,1716168652769,-2000.0,0.0002436,2]
[327529491,1716168652778,-2000.0,0.0002436,2]
[327529492,1716168652787,-2000.0,0.0002436,2]
[327529493,1716168652796,-2616.610395,0.0002437,2]
[327529494,1716168652805,-2000.0,0.0002437,2]
[327529495,1716168652816,-2000.0,0.0002437,2]
[327529496,1716168652825,-2000.0,0.0002438,2]
[327529497,1716168652835,-2000.0,0.0002438,2]
[327529498,1716168652846,-2569.103783,0.00024384,2]
[327529499,1716168652857,-2000.0,0.0002439,2]
[327529500,1716168652866,-2000.0,0.0002439,2]
[327529501,1716168652875,-150.0,0.00024397,2]
[327529502,1716168652886,-2000.0,0.000244,2]
[327529503,1716168652895,-2000.0,0.000244,2]
[327529504,1716168652905,-353.0,0.000244,2]
[327529505,1716168652914,-1000.0,0.000244,2]
[327529506,1716168652923,-223.0,0.000244,2]
[327529507,1716168652932,-262.2,0.000244,2]
[327529508,1716168652941,-159.99363732,0.00024406,2]
[327529509,1716168652952,-2924.915592,0.0002441,2]
[327529510,1716168652961,-3755.746112,0.0002441,2]
[327529511,1716168652970,-157.0521,0.00024448,8]
[327529512,1716168652980,-150.0,0.00024459,2]
[327529513,1716168652990,-300.0,0.00024459,2]
[327529514,1716168653000,-153.26342623,0.00024472,2]
[327529515,1716168653009,-554.97695703,0.00024489,2]
[327529516,1716168653018,-1500.0,0.000245,2]
[327529517,1716168653027,-1000.0,0.000245,2]
[327529518,1716168653037,-150.0,0.000245,4]
[327529519,1716168653046,-2426.93763562,0.0002451,2]
[327529520,1716168653056,-150.0,0.00024524,2]
[327529521,1716168653065,-150.0,0.00024542,2]
[327529522,1716168653075,-5564.9282836,0.00024542,28]
[327529523,1716168653085,-158.96537893,0.00024559,2]
[327529524,1716168653094,-183.27340083,0.00024577,2]
[327529525,1716168653103,-150.0,0.00024595,2]
[327529526,1716168653113,-158.50296534,0.00024601,2]
[327529527,1716168653122,-158.96537893,0.00024645,2]
[327529528,1716168653132,-250.0,0.00024658,2]
[327529529,1716168653141,-409.34,0.00024658,2]
[327529530,1716168653150,-425.18986507,0.00024684,2]
[327529531,1716168653160,-169.00998554,0.00024696,2]
[327529532,1716168653170,-3000.0,0.000247,2]
[327529533,1716168653179,-1000.0,0.000247,2]
[327529534,1716168653188,-299.93872796,0.00024709,2]
[327529535,1716168653198,-150.0,0.00024713,2]
[327529536,1716168653207,-160.47930242,0.00024718,2]
[327529537,1716168653217,-150.0,0.00024734,2]
[327529538,1716168653226,-150.0,0.00024752,2]
[327529539,1716168653236,-1500.0,0.00024758,2]
[327529540,1716168653247,-205.48851354,0.0002478,2]
[327529541,1716168653257,-701.13692025,0.00024828,2]
[327529542,1716168653267,-554.97695703,0.00024834,2]
[327529543,1716168653276,-197.61,0.00024844,2]
[327529544,1716168653286,-3000.0,0.0002485,2]
[327529545,1716168653295,-415.41,0.00024877,2]
[327529546,1716168653305,-869.42,0.00024877,2]
[327529547,1716168653315,-1151.5,0.00024877,2]
[327529548,1716168653325,-415.3,0.00024877,2]
[327529549,1716168653335,-166.66666666,0.00024877,2]
[327529550,1716168653345,-150.0,0.00024891,2]
[327529551,1716168653355,-1500.0,0.00024908,2]
[327529552,1716168653365,-150.0,0.00024926,2]
[327529553,1716168653374,-180.0,0.00024931,3]
[327529554,1716168653383,-150.0,0.00024956,2]
[327529555,1716168653391,-152.99399679,0.0002496,2]
[327529556,1716168653400,-1000.0,0.0002497,2]
[327529557,1716168653410,-1000.0,0.0002497,2]
[327529558,1716168653419,-500.0,0.0002497,2]
[327529559,1716168653428,-500.0,0.0002497,2]
[327529560,1716168653437,-150.0,0.00024989,10]
[327529561,1716168653446,-150.0,0.00024989,10]
[327529562,1716168653457,-150.0,0.00024989,10]
[327529563,1716168653467,-150.0,0.00024989,10]
[327529564,1716168653476,-150.0,0.00024989,10]
[327529565,1716168653485,-150.0,0.00024989,10]
[327529566,1716168653494,-150.0,0.00024989,10]
[327529567,1716168653503,-9175.63849341,0.0002499,2]
[327529568,1716168653512,-150.0,0.00024999,10]
[327529569,1716168653522,-150.0,0.00024999,10]
[327529570,1716168653532,-150.0,0.00024999,10]
[327529571,1716168653541,-150.0,0.00024999,10]
[327529572,1716168653555,-150.0,0.00024999,10]
[327529573,1716168653564,-150.0,0.00024999,10]
[327529574,1716168653573,-150.0,0.00024999,10]
[327529575,1716168653582,-150.0,0.00024999,10]
[327529576,1716168653593,-150.0,0.00024999,10]
[327529577,1716168653602,-150.0,0.00024999,10]
[327529578,1716168653612,-150.0,0.00024999,10]
[327529579,1716168653622,-150.0,0.00024999,10]
[327529580,1716168653634,-150.0,0.00024999,10]
[327529581,1716168653645,-150.0,0.00024999,10]
[327529582,1716168653655,-150.0,0.00024999,10]
[327529583,1716168653664,-150.0,0.00024999,10]
[327529584,1716168653673,-150.0,0.00024999,10]
[327529585,1716168653683,-150.0,0.00024999,10]
[327529586,1716168653693,-150.0,0.00024999,10]
[327529587,1716168653704,-150.0,0.00024999,10]
[327529588,1716168653714,-5000.0,0.00025,7]
[327529589,1716168653723,-1618.9737599,0.00025,10]
[327529590,1716168653733,-223.96386382,0.00025,2]
[327529591,1716168653743,-929.376762,0.00025,2]
[327529592,1716168653753,-155.0,0.00025,2]
[327529593,1716168653763,-248.12882201,0.00025,2]
[327529594,1716168653772,-3200.0,0.00025,2]
[327529595,1716168653783,-1271.32157717,0.00025,2]
[327529596,1716168653792,-2200.50084149,0.00025,2]
[327529597,1716168653801,-2855.25493727,0.00025,2]
[327529598,1716168653810,-160.0,0.00025,2]
[327529599,1716168653819,-3772.71278116,0.00025,2]
[327529600,1716168653828,-750.0,0.00025,2]
[327529601,1716168653838,-2000.0,0.00025,2]
[327529602,1716168653847,-200.0,0.00025,2]
[327529603,1716168653856,-2831.1068,0.00025,2]
[327529604,1716168653865,-7145.2837,0.00025,2]
[327529605,1716168653874,-1500.0,0.00025,2]
[327529606,1716168653883,-1000.0,0.00025,2]
[327529607,1716168653892,-1791.8699,0.00025,2]
[327529608,1716168653901,-150.0,0.00025,4]
[327529609,1716168653911,-153.88556162,0.00025,2]
[327529610,1716168653920,-2000.0,0.0002501,2]
[327529611,1716168653929,-2000.0,0.0002502,2]
[327529612,1716168653938,-2000.0,0.0002503,2]
[327529613,1716168653948,-2000.0,0.0002504,2]
[327529614,1716168653957,-2000.0,0.0002505,2]
[327529615,1716168653966,-2000.0,0.0002506,2]
[327529616,1716168653975,-2616.610395,0.0002507,2]
[327529617,1716168653984,-179.93636468,0.00025088,2]
[327529618,1716168653994,-205.48851354,0.00025094,2]
[327529619,1716168654003,-150.0,0.00025099,10]
[327529620,1716168654012,-150.0,0.00025099,10]
[327529621,1716168654022,-150.0,0.00025099,10]
[327529622,1716168654033,-150.0,0.00025099,10]
[327529623,1716168654043,-150.0,0.00025099,10]
[327529624,1716168654054,-150.0,0.00025099,10]
[327529625,1716168654064,-150.0,0.00025099,10]
[327529626,1716168654074,-150.0,0.00025099,10]
[327529627,1716168654085,-150.0,0.00025099,10]
[327529628,1716168654095,-150.0,0.00025099,10]
[327529629,1716168654104,-150.0,0.00025099,10]
[327529630,1716168654113,-150.0,0.00025099,10]
[327529631,1716168654217,-150.0,0.00025099,10]
[327529632,1716168654238,-150.0,0.00025099,10]
[327529633,1716168654248,-150.0,0.00025099,10]
[327529634,1716168654258,-150.0,0.00025099,10]
[327529635,1716168654267,-150.0,0.00025099,10]
[327529636,1716168654277,-150.0,0.00025099,10]
[327529637,1716168654289,-150.0,0.00025099,10]
[327529638,1716168654299,-16208.04621888,0.000251,2]
[327529639,1716168654308,-3176.57306779,0.000251,2]
[327529640,1716168654318,-183.27340083,0.00025108,2]
[327529641,1716168654328,-434.56969276,0.00025116,2]
[327529642,1716168654337,-158.96537893,0.00025136,2]
[327529643,1716168654347,-150.0,0.00025199,10]
[327529644,1716168654356,-150.0,0.00025199,10]
[327529645,1716168654366,-150.0,0.00025199,10]
[327529646,1716168654375,-150.0,0.00025199,10]
[327529647,1716168654384,-150.0,0.00025199,10]
[327529648,1716168654393,-150.0,0.00025199,10]
[327529649,1716168654403,-150.0,0.00025199,10]
[327529650,1716168654412,-150.0,0.00025199,10]
[327529651,1716168654421,-150.0,0.00025199,10]
[327529652,1716168654430,-150.0,0.00025199,10]
[327529653,1716168654439,-150.0,0.00025199,10]
[327529654,1716168654449,-150.0,0.00025199,10]
[327529655,1716168654459,-150.0,0.00025199,10]
[327529656,1716168654467,-4135.89,0.000252,2]
[327529657,1716168654477,-5247.18,0.000252,2]
[327529658,1716168654487,-4370.3,0.000252,2]
[327529659,1716168654496,-2394.0,0.000252,2]
[327529660,1716168654505,-969.802,0.000252,2]
[327529661,1716168654515,-2569.103783,0.00025205,2]
[327529662,1716168654524,-2426.93763562,0.00025283,2]
[327529663,1716168654535,-154.51679898,0.00025283,2]
[327529664,1716168654544,-5395.0,0.000253,3]
[327529665,1716168654557,-554.97695703,0.00025336,2]
[327529666,1716168654566,-205.48851354,0.00025434,2]
[327529667,1716168654575,-157.0521,0.00025448,10]
[327529668,1716168654585,-434.56969276,0.00025464,2]
[327529669,1716168654594,-150.0,0.000255,4]
[327529670,1716168654603,-157.71739218,0.00025522,2]
[327529671,1716168654612,-300.12357253,0.00025522,2]
[327529672,1716168654621,-178.92,0.00025548,2]
[327529673,1716168654631,-300.12357253,0.00025562,2]
[327529674,1716168654640,-166.66666666,0.00025604,2]
[327529675,1716168654650,-154.51679898,0.00025638,2]
[327529676,1716168654659,-166.66666666,0.00025645,2]
[327529677,1716168654668,-554.97695703,0.00025669,2]
[327529678,1716168654678,-1191.22275833,0.00025673,2]
[327529679,1716168654687,-157.337419,0.0002568,2]
[327529680,1716168654697,-166.66666666,0.00025743,2]
[327529681,1716168654706,-157.66903106,0.00025745,2]
[327529682,1716168654715,-183.27340083,0.00025752,2]
[327529683,1716168654725,-300.12357253,0.00025773,2]
[327529684,1716168654734,-152.99399679,0.00025816,2]
[327529685,1716168654743,-586.35,0.00025836,2]
[327529686,1716168654753,-415.41,0.00025836,2]
[327529687,1716168654762,-415.41,0.00025836,2]
[327529688,1716168654771,-869.42,0.00025836,2]
[327529689,1716168654781,-415.41,0.00025836,2]
[327529690,1716168654791,-869.42,0.00025836,2]
[327529691,1716168654800,-869.42,0.00025836,2]
[327529692,1716168654810,-415.41,0.00025836,2]
[327529693,1716168654819,-869.42,0.00025836,2]
[327529694,1716168654828,-415.41,0.00025836,2]
[327529695,1716168654837,-806.82,0.00025836,2]
[327529696,1716168654846,-1609.03,0.00025836,2]
[327529697,1716168654855,-434.56969276,0.00025888,2]
[327529698,1716168654864,-158.25,0.0002589,2]
[327529699,1716168654874,-4115.66,0.000259,2]
[327529700,1716168654883,-11716.0,0.000259,5]
[327529701,1716168654892,-554.97695703,0.00025903,2]
[327529702,1716168654901,-178.58367512,0.00025958,2]
[327529703,1716168654910,-711.76525434,0.0002597,2]
[327529704,1716168654920,-240.8639393,0.00026,2]
[327529705,1716168654929,-4244.41879308,0.00026,2]
[327529706,1716168654938,-1001.53723821,0.00026,3]
[327529707,1716168654948,-150.0,0.00026,4]
[327529708,1716168654957,-1400.29,0.00026027,2]
[327529709,1716168654967,-2569.103783,0.00026027,2]
[327529710,1716168654976,-1600.88,0.0002607,2]
[327529711,1716168654986,-150.0,0.00026079,2]
[327529712,1716168654995,-150.0,0.0002611,2]
[327529713,1716168655005,-157.337419,0.00026129,2]
[327529714,1716168655015,-166.66666666,0.0002615,2]
[327529715,1716168655024,-166.66666666,0.00026165,2]
[327529716,1716168655034,-554.97695703,0.00026172,2]
[327529717,1716168655044,-2426.93763562,0.00026175,2]
[327529718,1716168655053,-5247.18,0.000262,2]
[327529719,1716168655063,-4370.3,0.000262,2]
[327529720,1716168655072,-5247.18,0.000262,2]
[327529721,1716168655082,-4370.3,0.000262,2]
[327529722,1716168655093,-154.61,0.00026274,2]
[327529723,1716168655103,-166.66666666,0.00026348,2]
[327529724,1716168655113,-25772.83647791,0.000264,2]
[327529725,1716168655123,-4135.89,0.000264,2]
[327529726,1716168655132,-157.0521,0.00026448,18]
[327529727,1716168655141,-166.66666666,0.00026471,2]
[327529728,1716168655151,-150.0,0.000265,5]
[327529729,1716168655161,-166.66666666,0.00026513,2]
[327529730,1716168655171,-157.337419,0.00026538,2]
[327529731,1716168655180,-166.66666666,0.00026567,2]
[327529732,1716168655189,-153.90576893,0.00026633,2]
[327529733,1716168655199,-152.78,0.00026639,2]
[327529734,1716168655208,-523.76,0.00026639,2]
[327529735,1716168655217,-840.77,0.00026639,2]
[327529736,1716168655226,-328.06,0.00026639,2]
[327529737,1716168655235,-150.0,0.00026639,2]
[327529738,1716168655245,-351.72,0.00026639,2]
[327529739,1716168655254,-150.0,0.00026639,2]
[327529740,1716168655263,-351.72,0.00026639,2]
[327529741,1716168655273,-351.72,0.00026639,2]
[327529742,1716168655283,-150.0,0.00026639,2]
[327529743,1716168655292,-269.92,0.00026639,2]
[327529744,1716168655301,-150.0,0.00026639,2]
[327529745,1716168655311,-1326.60489925,0.00026676,2]
[327529746,1716168655320,-299.93872796,0.00026709,2]
[327529747,1716168655329,-554.97695703,0.0002673,2]
[327529748,1716168655338,-205.48851354,0.00026734,2]
[327529749,1716168655347,-166.83499667,0.00026766,2]
[327529750,1716168655356,-166.66666666,0.0002677,2]
[327529751,1716168655365,-434.56969276,0.00026796,2]
[327529752,1716168655374,-1191.22275833,0.0002681,2]
[327529753,1716168655384,-166.66666666,0.00026829,2]
[327529754,1716168655393,-168.05990777,0.00026841,2]
[327529755,1716168655402,-1191.22275833,0.00026843,2]
[327529756,1716168655411,-2569.103783,0.00026849,2]
[327529757,1716168655420,-2426.93763562,0.00026856,2]
[327529758,1716168655430,-155.56019281,0.00026888,2]
[327529759,1716168655439,-967.45,0.00026921,2]
[327529760,1716168655448,-1223.39,0.00026921,2]
[327529761,1716168655457,-181.11,0.00026921,2]
[327529762,1716168655467,-701.13692025,0.00026926,2]
[327529763,1716168655476,-554.97695703,0.00026927,2]
[327529764,1716168655485,-1191.22275833,0.00026935,2]
[327529765,1716168655494,-169.18135279,0.00026946,2]
[327529766,1716168655504,-157.66903106,0.0002699,2]
[327529767,1716168655513,-155.07136205,0.00027,2]
[327529768,1716168655522,-155.26392817,0.00027,4]
[327529769,1716168655533,-10998.50553668,0.00027,2]
[327529770,1716168655544,-256481.29054588,0.00027,2]